{"text_format":"1","workbook":"xlsx","n_sheets":4,"sheets":["Заполнение данных на месяц","График","1","2"],"not_rendered":{"charts":0,"images":0,"macros":1,"external_links":0,"defined_names":0,"comments":0,"pivot_tables":0},"unopened":[],"bounds":{"document_bytes":16777216,"sheet_cells":100000,"rows_first":2000,"rows_last":500,"rows_between":2000,"halvings":0,"cell_chars":16384,"cell_head_chars":4096},"cells_cut":0,"cells_raw":0,"read":"whole","date_system":"1900"}

{"sheet":"Заполнение данных на месяц","index":0,"n_rows":115,"n_cols":7,"rows_kept":115,"cut":false,"hidden":false,"merged":[[0,17,1048575,37],[8,7,9,7],[8,6,9,6],[4,2,4,3],[3,5,3,6],[5,5,5,6],[3,8,3,11],[5,8,5,11],[2,13,2,14],[14,11,14,13],[14,8,14,9],[14,2,14,3],[14,5,14,6],[8,8,9,8]]}
[]
[]
[]
[]
[]
[]
[]
[]
[]
[]
[]
[]
[]
[]
[null,null,"Начальство",null,null,"Сотрудники"]
[null,null,1,"Быков",null,51,"Константинов"]
[null,null,2,"Васильев",null,52,"Копылов"]
[null,null,3,"Веселов",null,53,"Корнилов"]
[null,null,4,"Виноградов",null,54,"Королёв"]
[null,null,5,"Вишняков",null,55,"Костин"]
[null,null,6,"Владимиров",null,56,"Котов"]
[null,null,7,"Власов",null,57,"Кошелев"]
[null,null,8,"Волков",null,58,"Красильников"]
[null,null,9,"Воробьёв",null,59,"Крылов"]
[null,null,10,"Воронов",null,60,"Крюков"]
[null,null,11,"Воронцов",null,61,"Кудрявцев"]
[null,null,12,"Гаврилов",null,62,"Кудряшов"]
[null,null,13,"Галкин",null,63,"Кузнецов"]
[null,null,14,"Герасимов",null,64,"Кузьмин"]
[null,null,15,"Голубев",null,65,"Кулагин"]
[null,null,16,"Горбачёв",null,66,"Кулаков"]
[null,null,17,"Горбунов",null,67,"Куликов"]
[null,null,18,"Гордеев",null,68,"Лаврентьев"]
[null,null,19,"Горшков",null,69,"Лазарев"]
[null,null,20,"Григорьев",null,70,"Лапин"]
[null,null,21,"Гришин",null,71,"Ларионов"]
[null,null,22,"Громов",null,72,"Лебедев"]
[null,null,23,"Гуляев",null,73,"Лихачёв"]
[null,null,24,"Гурьев",null,74,"Лобанов"]
[null,null,25,"Гусев",null,75,"Логинов"]
[null,null,26,"Гущин",null,76,"Лукин"]
[null,null,27,"Давыдов",null,77,"Лыткин"]
[null,null,28,"Данилов",null,78,"Макаров"]
[null,null,29,"Дементьев",null,79,"Максимов"]
[null,null,30,"Денисов",null,80,"Мамонтов"]
[null,null,31,"Дмитриев",null,81,"Марков"]
[null,null,32,"Доронин",null,82,"Мартынов"]
[null,null,33,"Дорофеев",null,83,"Маслов"]
[null,null,34,"Дроздов",null,84,"Матвеев"]
[null,null,35,"Дьячков",null,85,"Медведев"]
[null,null,36,"Евдокимов",null,86,"Мельников"]
[null,null,37,"Евсеев",null,87,"Меркушев"]
[null,null,38,"Егоров",null,88,"Миронов"]
[null,null,39,"Елисеев",null,89,"Михайлов"]
[null,null,40,"Емельянов",null,90,"Михеев"]
[null,null,41,"Ермаков",null,91,"Мишин"]
[null,null,42,"Ершов",null,92,"Моисеев"]
[null,null,43,"Ефимов",null,93,"Молчанов"]
[null,null,44,"Ефремов",null,94,"Морозов"]
[null,null,45,"Жданов",null,95,"Муравьёв"]
[null,null,46,"Жуков",null,96,"Мухин"]
[null,null,47,"Журавлёв",null,97,"Мышкин"]
[null,null,48,"Зайцев",null,98,"Мясников"]
[null,null,49,"Захаров",null,99,"Назаров"]
[null,null,50,"Зимин",null,100,"Наумов"]
[null,null,null,null,null,101,"Некрасов"]
[null,null,null,null,null,102,"Нестеров"]
[null,null,null,null,null,103,"Никитин"]
[null,null,null,null,null,104,"Никифоров"]
[null,null,null,null,null,105,"Николаев"]
[null,null,null,null,null,106,"Никонов"]
[null,null,null,null,null,107,"Новиков"]
[null,null,null,null,null,108,"Носков"]
[null,null,null,null,null,109,"Носов"]
[null,null,null,null,null,110,"Овчинников"]
[null,null,null,null,null,111,"Одинцов"]
[null,null,null,null,null,112,"Орехов"]
[null,null,null,null,null,113,"Орлов"]
[null,null,null,null,null,114,"Осипов"]
[null,null,null,null,null,115,"Павлов"]
[null,null,null,null,null,116,"Панов"]
[null,null,null,null,null,117,"Панфилов"]
[null,null,null,null,null,118,"Пахомов"]
[null,null,null,null,null,119,"Пестов"]
[null,null,null,null,null,120,"Петров"]
[null,null,null,null,null,121,"Петухов"]
[null,null,null,null,null,122,"Поляков"]
[null,null,null,null,null,123,"Пономарёв"]
[null,null,null,null,null,124,"Попов"]
[null,null,null,null,null,125,"Потапов"]
[null,null,null,null,null,126,"Прохоров"]
[null,null,null,null,null,127,"Рогов"]
[null,null,null,null,null,128,"Родионов"]
[null,null,null,null,null,129,"Рожков"]
[null,null,null,null,null,130,"Романов"]
[null,null,null,null,null,131,"Русаков"]
[null,null,null,null,null,132,"Рыбаков"]
[null,null,null,null,null,133,"Рябов"]
[null,null,null,null,null,134,"Савельев"]
[null,null,null,null,null,135,"Савин"]
[null,null,null,null,null,136,"Сазонов"]
[null,null,null,null,null,137,"Самойлов"]
[null,null,null,null,null,138,"Самсонов"]
[null,null,null,null,null,139,"Сафонов"]
[null,null,null,null,null,140,"Селезнёв"]
[null,null,null,null,null,141,"Селиверстов"]
[null,null,null,null,null,142,"Семёнов"]
[null,null,null,null,null,143,"Сергеев"]
[null,null,null,null,null,144,"Сидоров"]
[null,null,null,null,null,145,"Силин"]
[null,null,null,null,null,146,"Симонов"]
[null,null,null,null,null,147,"Ситников"]
[null,null,null,null,null,148,"Соболев"]
[null,null,null,null,null,149,"Соколов"]
[null,null,null,null,null,150,"Соловьёв"]

{"sheet":"График","index":1,"n_rows":160,"n_cols":36,"rows_kept":160,"cut":false,"hidden":false,"merged":[[2,23,2,30],[5,12,5,21],[4,2,4,4],[5,6,5,10],[3,6,3,10],[3,12,3,21],[3,23,3,26],[4,23,4,26],[5,23,5,26],[5,27,5,30],[4,27,4,30],[3,27,3,30]]}
[]
[]
[]
[]
[]
[]
[]
[]
[]
[null,null,"№","ФИО","Д",1,2,3,4,5,6,7,8,9,10,11,12,13,14,15,16,17,18,19,20,21,22,23,24,25,26,27,28,29,30,31]
[null,null,1,{"$f":"IF('Заполнение данных на месяц'!D16=\"\",\"\",'Заполнение данных на месяц'!D16)","v":"Быков"},"в","з0",null,null,null,null,"з5","з6","з7",null,null,null,"2з",22,23,24,null,null,null,null,29,30,"3з",32,33,null,null,null,37,38,39,40]
[null,null,2,{"$f":"IF('Заполнение данных на месяц'!D17=\"\",\"\",'Заполнение данных на месяц'!D17)","v":"Васильев"},"в","з0","зз","з2","з3","з4","з5","з6",null,null,null,null,null,22,23,24,25,26,27,null,null,null,null,null,null,null,null,36,37,38,39,40]
[null,null,3,{"$f":"IF('Заполнение данных на месяц'!D18=\"\",\"\",'Заполнение данных на месяц'!D18)","v":"Веселов"},"в",null,"зз",null,null,null,"з5","з6","з7","з8",null,null,null,22,23,24,null,26,27,28,29,null,null,32,null,34,35,36]
[null,null,4,{"$f":"IF('Заполнение данных на месяц'!D19=\"\",\"\",'Заполнение данных на месяц'!D19)","v":"Виноградов"},"в",null,"зз","з2","з3","з4",null,null,"з7","з8","з9",20,null,null,null,24,25,null,null,null,29,null,null,32,33,34,35,36,37,38,39,40]
[null,null,5,{"$f":"IF('Заполнение данных на месяц'!D20=\"\",\"\",'Заполнение данных на месяц'!D20)","v":"Вишняков"},"в","з0","зз","з2","з3",null,"з5","з6","з7","з8","з9",20,"2з",22,23,24,25,null,null,null,29,null,null,null,null,null,null,36,37,38,39]
[null,null,6,{"$f":"IF('Заполнение данных на месяц'!D21=\"\",\"\",'Заполнение данных на месяц'!D21)","v":"Владимиров"},"в","з0",null,"з2","з3","з4","з5",null,null,"з8","з9",20,"2з",22,23,24,25,26,27,28,29,30,"3з",32,33,34,35,36,37,null,39]
[null,null,7,{"$f":"IF('Заполнение данных на месяц'!D22=\"\",\"\",'Заполнение данных на месяц'!D22)","v":"Власов"},"в","з0",null,null,null,"з4","з5",null,null,"з8","з9",null,null,null,null,null,25,26,27,28,29,30,"3з",32,null,34,35,36,37,null,39]
[null,null,8,{"$f":"IF('Заполнение данных на месяц'!D23=\"\",\"\",'Заполнение данных на месяц'!D23)","v":"Волков"},"в",null,null,null,null,"з4","з5","з6","з7","з8","з9",null,"2з",22,23,null,null,null,null,null,null,null,null,null,null,34,35,null,37,null,39]
[null,null,9,{"$f":"IF('Заполнение данных на месяц'!D24=\"\",\"\",'Заполнение данных на месяц'!D24)","v":"Воробьёв"},"в","з0","зз","з2","з3","з4",null,null,null,null,"з9",20,"2з",null,23,null,null,null,null,null,null,null,null,null,null,34,35,null,37,null,39,40]
[null,null,10,{"$f":"IF('Заполнение данных на месяц'!D25=\"\",\"\",'Заполнение данных на месяц'!D25)","v":"Воронов"},"в",null,"зз","з2","з3","з4","з5","з6","з7","з8","з9",20,"2з",null,23,null,null,null,27,28,29,30,null,null,null,34,35,null,37,38,39,40]
[null,null,11,{"$f":"IF('Заполнение данных на месяц'!D26=\"\",\"\",'Заполнение данных на месяц'!D26)","v":"Воронцов"},"в","з0",null,null,null,"з4","з5","з6",null,null,null,null,"2з",null,23,24,25,26,27,28,29,30,"3з",32,33,34,35,36,37,38,39,40]
[null,null,12,{"$f":"IF('Заполнение данных на месяц'!D27=\"\",\"\",'Заполнение данных на месяц'!D27)","v":"Гаврилов"},"в","з0","зз","з2","з3",null,"з5","з6","з7","з8","з9",20,"2з",22,23,24,null,26,27,null,null,null,null,null,null,34,35,36]
[null,null,13,{"$f":"IF('Заполнение данных на месяц'!D28=\"\",\"\",'Заполнение данных на месяц'!D28)","v":"Галкин"},"в","з0","зз",null,null,null,null,null,null,"з8","з9",null,"2з",22,23,24,null,26,27,28,29,30,"3з",32,33,34,35,36,37,38,39,40]
[null,null,14,{"$f":"IF('Заполнение данных на месяц'!D29=\"\",\"\",'Заполнение данных на месяц'!D29)","v":"Герасимов"},"в","з0","зз",null,null,null,null,null,null,"з8","з9",20,"2з",22,23,24,null,26,null,null,null,30,"3з",32,null,null,null,36,null,null,null,40]
[null,null,15,{"$f":"IF('Заполнение данных на месяц'!D30=\"\",\"\",'Заполнение данных на месяц'!D30)","v":"Голубев"},"в","з0","зз",null,null,null,null,null,null,null,null,null,null,null,23,24,null,null,null,null,29,30,"3з",32,33,34,35,36,37,38,39,40]
[null,null,16,{"$f":"IF('Заполнение данных на месяц'!D31=\"\",\"\",'Заполнение данных на месяц'!D31)","v":"Горбачёв"},"в","з0","зз","з2","з3","з4","з5","з6","з7","з8","з9",20,"2з",22,23,24,null,null,null,null,29,30,"3з",32]
[null,null,17,{"$f":"IF('Заполнение данных на месяц'!D32=\"\",\"\",'Заполнение данных на месяц'!D32)","v":"Горбунов"},"в","з0","зз",null,null,null,"з5","з6","з7","з8",null,null,null,null,23,24,null,26,27,28,29,null,null,null,null,null,null,36,37,38,39,40]
[null,null,18,{"$f":"IF('Заполнение данных на месяц'!D33=\"\",\"\",'Заполнение данных на месяц'!D33)","v":"Гордеев"},"в","з0","зз",null,null,null,null,null,null,"з8",null,null,null,null,23,24,25,26,27,28,29,30,"3з",32,33,34,35,36,37,38,39,40]
[null,null,19,{"$f":"IF('Заполнение данных на месяц'!D34=\"\",\"\",'Заполнение данных на месяц'!D34)","v":"Горшков"},"в","з0","зз",null,null,null,null,null,null,"з8","з9",20,"2з",22,23,24,25,26,null,null,null,null,null,null,null,null,35,36]
[null,null,20,{"$f":"IF('Заполнение данных на месяц'!D35=\"\",\"\",'Заполнение данных на месяц'!D35)","v":"Григорьев"},"в","з0","зз","з2","з3","з4","з5",null,null,null,null,null,"2з",22,23,24,25,26,27,28,29,30,"3з",32,33,34,35,36,37,38,39,40]
[null,null,21,{"$f":"IF('Заполнение данных на месяц'!D36=\"\",\"\",'Заполнение данных на месяц'!D36)","v":"Гришин"},"в","з0","зз","з2","з3","з4","з5","з6","з7","з8","з9",20,"2з",22,23,24,25,26,27,28,29,30,null,null,null,34,35,36,37,38,39,40]
[null,null,22,{"$f":"IF('Заполнение данных на месяц'!D37=\"\",\"\",'Заполнение данных на месяц'!D37)","v":"Громов"},"в","з0","зз","з2","з3","з4","з5","з6","з7","з8","з9",20,"2з",22,null,null,null,null,null,28,29,30,"3з",32,33,34,35,36,37,38,39,40]
[null,null,23,{"$f":"IF('Заполнение данных на месяц'!D38=\"\",\"\",'Заполнение данных на месяц'!D38)","v":"Гуляев"},"в","з0","зз","з2",null,null,null,null,null,"з8","з9",null,null,null,null,null,25,26,27,28,29,30,"3з",null,null,null,null,null,null,null,null,40]
[null,null,24,{"$f":"IF('Заполнение данных на месяц'!D39=\"\",\"\",'Заполнение данных на месяц'!D39)","v":"Гурьев"},"в","з0","зз","з2","з3","з4","з5","з6","з7","з8","з9",null,null,null,null,null,25,26,27,28,29,30,"3з",null,null,null,null,null,null,null,null,40]
[null,null,25,{"$f":"IF('Заполнение данных на месяц'!D40=\"\",\"\",'Заполнение данных на месяц'!D40)","v":"Гусев"},"в",null,null,null,null,"з4","з5","з6","з7","з8","з9",20,"2з",22,23,24,25,26,27,28,null,null,null,null,null,null,35,36,37,38,39,40]
[null,null,26,{"$f":"IF('Заполнение данных на месяц'!D41=\"\",\"\",'Заполнение данных на месяц'!D41)","v":"Гущин"},"в",null,null,null,null,"з4","з5",null,null,null,null,null,null,null,23,24,25,26,27,28,29,30,"3з",32,33,34,35,36,37,38,39,40]
[null,null,27,{"$f":"IF('Заполнение данных на месяц'!D42=\"\",\"\",'Заполнение данных на месяц'!D42)","v":"Давыдов"},"в","з0","зз","з2","з3","з4","з5","з6","з7","з8","з9",20,"2з",22,23,24,25,26,27,28,29,30,"3з",32,33,34,null,null,null,null,39,40]
[null,null,28,{"$f":"IF('Заполнение данных на месяц'!D43=\"\",\"\",'Заполнение данных на месяц'!D43)","v":"Данилов"},"в","з0",null,null,null,null,"з5",null,null,null,null,null,null,null,null,null,25,26,27,28,29,30,"3з",32,33,34,null,null,null,null,39,40]
[null,null,29,{"$f":"IF('Заполнение данных на месяц'!D44=\"\",\"\",'Заполнение данных на месяц'!D44)","v":"Дементьев"},"в","з0","зз",null,null,null,null,null,"з7","з8","з9",20,"2з",22,23,24,null,null,null,null,null,30,"3з",32,33,34,35,36,37,38,39,40]
[null,null,30,{"$f":"IF('Заполнение данных на месяц'!D45=\"\",\"\",'Заполнение данных на месяц'!D45)","v":"Денисов"},"в","з0","зз","з2","з3","з4","з5","з6","з7","з8","з9",20,null,null,null,null,null,null,27,null,null,null,null,null,33,34,null,null,null,null,null,40]
[null,null,31,{"$f":"IF('Заполнение данных на месяц'!D46=\"\",\"\",'Заполнение данных на месяц'!D46)","v":"Дмитриев"},"в","з0",null,"з2","з3",null,null,null,"з7",null,null,null,null,null,null,null,null,null,27,null,null,null,null,null,33,34,35,36,37,38,39,40]
[null,null,32,{"$f":"IF('Заполнение данных на месяц'!D47=\"\",\"\",'Заполнение данных на месяц'!D47)","v":"Доронин"},"в","з0",null,"з2","з3",null,null,null,"з7","з8","з9",20,null,null,null,null,null,null,27,28,29,30,"3з",32,33,34,null,null,null,null,39,40]
[null,null,33,{"$f":"IF('Заполнение данных на месяц'!D48=\"\",\"\",'Заполнение данных на месяц'!D48)","v":"Дорофеев"},"в","з0",null,"з2",null,null,null,null,"з7","з8","з9",20,"2з",22,23,24,25,26,27,28,29,null,null,null,null,34,null,null,null,null,39,40]
[null,null,34,{"$f":"IF('Заполнение данных на месяц'!D49=\"\",\"\",'Заполнение данных на месяц'!D49)","v":"Дроздов"},"в","з0",null,"з2",null,null,null,null,null,null,"з9",20,null,null,null,null,null,null,null,28,29,null,null,null,null,34,null,null,null,null,39,40]
[null,null,35,{"$f":"IF('Заполнение данных на месяц'!D50=\"\",\"\",'Заполнение данных на месяц'!D50)","v":"Дьячков"},"в","з0",null,"з2","з3",null,null,null,null,null,"з9",20,null,null,null,null,null,null,null,28,29,30,"3з",32,33,34,null,null,null,null,39,40]
[null,null,36,{"$f":"IF('Заполнение данных на месяц'!D51=\"\",\"\",'Заполнение данных на месяц'!D51)","v":"Евдокимов"},"в","з0",null,"з2","з3","з4","з5","з6","з7","з8",null,null,null,22,null,24,25,26,27,28,null,null,null,null,33,34,null,null,null,null,39,40]
[null,null,37,{"$f":"IF('Заполнение данных на месяц'!D52=\"\",\"\",'Заполнение данных на месяц'!D52)","v":"Евсеев"},"в","з0","зз","з2","з3",null,null,null,"з7","з8","з9",20,"2з",22,null,24,25,null,null,null,null,null,null,null,33,34,null,null,null,null,39]
[null,null,38,{"$f":"IF('Заполнение данных на месяц'!D53=\"\",\"\",'Заполнение данных на месяц'!D53)","v":"Егоров"},"в",null,null,null,null,"з4","з5","з6","з7",null,null,null,"2з",22,null,24,25,26,27,28,null,null,null,null,null,null,null,null,null,38,39]
[null,null,39,{"$f":"IF('Заполнение данных на месяц'!D54=\"\",\"\",'Заполнение данных на месяц'!D54)","v":"Елисеев"},"в","з0",null,null,null,null,null,"з6","з7","з8","з9",20,"2з",22,23,24,25,26,27,28,29,30,"3з",32,null,null,null,null,null,38,39]
[null,null,40,{"$f":"IF('Заполнение данных на месяц'!D55=\"\",\"\",'Заполнение данных на месяц'!D55)","v":"Емельянов"},"в","з0",null,null,null,null,null,"з6",null,null,null,null,null,null,23,24,25,null,null,null,null,null,null,null,33,34,null,null,null,38,39,40]
[null,null,41,{"$f":"IF('Заполнение данных на месяц'!D56=\"\",\"\",'Заполнение данных на месяц'!D56)","v":"Ермаков"},"в","з0",null,null,null,null,null,"з6","з7","з8","з9",20,"2з",22,23,24,25,null,null,null,null,null,null,null,33,34,35,36,37,38,39,40]
[null,null,42,{"$f":"IF('Заполнение данных на месяц'!D57=\"\",\"\",'Заполнение данных на месяц'!D57)","v":"Ершов"},"в","з0",null,null,null,null,null,"з6","з7","з8","з9",null,null,null,null,null,25,26,27,null,null,null,null,null,null,null,35,null,null,38]
[null,null,43,{"$f":"IF('Заполнение данных на месяц'!D58=\"\",\"\",'Заполнение данных на месяц'!D58)","v":"Ефимов"},"в","з0","зз","з2","з3","з4","з5","з6","з7","з8","з9",20,"2з",22,23,24,25,26,27,null,null,null,null,null,null,null,35,36,37,38]
[null,null,44,{"$f":"IF('Заполнение данных на месяц'!D59=\"\",\"\",'Заполнение данных на месяц'!D59)","v":"Ефремов"},"в","з0","зз",null,null,null,null,"з6","з7","з8","з9",null,null,null,null,null,null,null,27,28,29,30,"3з",32,33,34,35,36]
[null,null,45,{"$f":"IF('Заполнение данных на месяц'!D60=\"\",\"\",'Заполнение данных на месяц'!D60)","v":"Жданов"},"в","з0","зз","з2","з3",null,null,null,null,null,null,null,null,null,23,24,25,26,null,null,null,null,null,null,33,34,35,36,37,38]
[null,null,46,{"$f":"IF('Заполнение данных на месяц'!D61=\"\",\"\",'Заполнение данных на месяц'!D61)","v":"Жуков"},"в","з0",null,null,null,null,null,null,"з7","з8","з9",null,null,null,null,null,25,26,27,28,29,null,null,null,null,null,null,null,37,38]
[null,null,47,{"$f":"IF('Заполнение данных на месяц'!D62=\"\",\"\",'Заполнение данных на месяц'!D62)","v":"Журавлёв"},"в","з0","зз",null,null,null,null,null,null,"з8","з9",20,"2з",null,null,null,null,null,null,null,null,null,"3з",32,33,34,35]
[null,null,48,{"$f":"IF('Заполнение данных на месяц'!D63=\"\",\"\",'Заполнение данных на месяц'!D63)","v":"Зайцев"},"в","з0","зз",null,null,null,null,null,null,"з8","з9",20,"2з",null,null,null,25,26,27,28,null,null,"3з",32,null,null,null,null,null,38,39,40]
[null,null,49,{"$f":"IF('Заполнение данных на месяц'!D64=\"\",\"\",'Заполнение данных на месяц'!D64)","v":"Захаров"},"в","з0","зз",null,null,null,null,null,"з7","з8",null,null,null,null,null,null,null,null,null,null,null,null,"3з",32,33,34,null,null,37,38,39,40]
[null,null,50,{"$f":"IF('Заполнение данных на месяц'!D65=\"\",\"\",'Заполнение данных на месяц'!D65)","v":"Зимин"},"в","з0","зз",null,null,null,null,null,"з7","з8","з9",20,"2з",22,null,null,null,null,null,null,null,null,"3з",32,null,null,null,null,null,38,39,40]
[null,null,51,{"$f":"IF('Заполнение данных на месяц'!G16=\"\",\"\",'Заполнение данных на месяц'!G16)","v":"Константинов"},"и",60,null,null,null,null,75,16,17,null,null,null,"з1","зз","з3","з4",null,null,null,null,74,30,31,"3з",33,null,null,null,37,38,39,40]
[null,null,52,{"$f":"IF('Заполнение данных на месяц'!G17=\"\",\"\",'Заполнение данных на месяц'!G17)","v":"Копылов"},"и",60,11,"1з",13,14,75,16,null,null,null,null,null,"зз","з3","з4","з5","з6","з7",null,null,null,null,null,null,null,null,36,37,38,39,40]
[null,null,53,{"$f":"IF('Заполнение данных на месяц'!G18=\"\",\"\",'Заполнение данных на месяц'!G18)","v":"Корнилов"},"и",null,11,null,null,null,75,16,17,18,null,null,null,"зз","з3","з4",null,"з6","з7","з8",74,null,null,"3з",null,34,35,36]
[null,null,54,{"$f":"IF('Заполнение данных на месяц'!G19=\"\",\"\",'Заполнение данных на месяц'!G19)","v":"Королёв"},"и",null,11,"1з",13,14,null,null,17,18,19,"з0",null,null,null,"з4","з5",null,null,null,74,null,null,"3з",33,34,35,36,37,38,39,40]
[null,null,55,{"$f":"IF('Заполнение данных на месяц'!G20=\"\",\"\",'Заполнение данных на месяц'!G20)","v":"Костин"},"и",60,11,"1з",13,null,75,16,17,18,19,"з0","з1","зз","з3","з4","з5",null,null,null,74,null,null,null,null,null,null,36,37,38,39]
[null,null,56,{"$f":"IF('Заполнение данных на месяц'!G21=\"\",\"\",'Заполнение данных на месяц'!G21)","v":"Котов"},"и",60,null,"1з",13,14,75,null,null,18,19,"з0","з1","зз","з3","з4","з5","з6","з7","з8",74,30,31,"3з",33,34,35,36,37,null,39]
[null,null,57,{"$f":"IF('Заполнение данных на месяц'!G22=\"\",\"\",'Заполнение данных на месяц'!G22)","v":"Кошелев"},"и",60,null,null,null,14,75,null,null,18,19,null,null,null,null,null,"з5","з6","з7","з8",74,30,31,"3з",null,34,35,36,37,null,39]
[null,null,58,{"$f":"IF('Заполнение данных на месяц'!G23=\"\",\"\",'Заполнение данных на месяц'!G23)","v":"Красильников"},"и",null,null,null,null,14,75,16,17,18,19,null,"з1","зз","з3",null,null,null,null,null,null,null,null,null,null,34,35,null,37,null,39]
[null,null,59,{"$f":"IF('Заполнение данных на месяц'!G24=\"\",\"\",'Заполнение данных на месяц'!G24)","v":"Крылов"},"и",60,11,"1з",13,14,null,null,null,null,19,"з0","з1",null,"з3",null,null,null,null,null,null,null,null,null,null,34,35,null,37,null,39,40]
[null,null,60,{"$f":"IF('Заполнение данных на месяц'!G25=\"\",\"\",'Заполнение данных на месяц'!G25)","v":"Крюков"},"и",null,11,"1з",13,14,75,16,17,18,19,"з0","з1",null,"з3",null,null,null,"з7","з8",74,30,null,null,null,34,35,null,37,38,39,40]
[null,null,61,{"$f":"IF('Заполнение данных на месяц'!G26=\"\",\"\",'Заполнение данных на месяц'!G26)","v":"Кудрявцев"},"и",60,null,null,null,14,75,16,null,null,null,null,"з1",null,"з3","з4","з5","з6","з7","з8",74,30,31,"3з",33,34,35,36,37,38,39,40]
[null,null,62,{"$f":"IF('Заполнение данных на месяц'!G27=\"\",\"\",'Заполнение данных на месяц'!G27)","v":"Кудряшов"},"и",60,11,"1з",13,null,75,16,17,18,19,"з0","з1","зз","з3","з4",null,"з6","з7",null,null,null,null,null,null,34,35,36]
[null,null,63,{"$f":"IF('Заполнение данных на месяц'!G28=\"\",\"\",'Заполнение данных на месяц'!G28)","v":"Кузнецов"},"и",60,11,null,null,null,null,null,null,18,19,null,"з1","зз","з3","з4",null,"з6","з7","з8",74,30,31,"3з",33,34,35,36,37,38,39,40]
[null,null,64,{"$f":"IF('Заполнение данных на месяц'!G29=\"\",\"\",'Заполнение данных на месяц'!G29)","v":"Кузьмин"},"и",60,11,null,null,null,null,null,null,18,19,"з0","з1","зз","з3","з4",null,"з6",null,null,null,30,31,"3з",null,null,null,36,null,null,null,40]
[null,null,65,{"$f":"IF('Заполнение данных на месяц'!G30=\"\",\"\",'Заполнение данных на месяц'!G30)","v":"Кулагин"},"и",60,11,null,null,null,null,null,null,null,null,null,null,null,"з3","з4",null,null,null,null,74,30,31,"3з",33,34,35,36,37,38,39,40]
[null,null,66,{"$f":"IF('Заполнение данных на месяц'!G31=\"\",\"\",'Заполнение данных на месяц'!G31)","v":"Кулаков"},"и",60,11,"1з",13,14,75,16,17,18,19,"з0","з1","зз","з3","з4",null,null,null,null,74,30,31,"3з"]
[null,null,67,{"$f":"IF('Заполнение данных на месяц'!G32=\"\",\"\",'Заполнение данных на месяц'!G32)","v":"Куликов"},"и",60,11,null,null,null,75,16,17,18,null,null,null,null,"з3","з4",null,"з6","з7","з8",74,null,null,null,null,null,null,36,37,38,39,40]
[null,null,68,{"$f":"IF('Заполнение данных на месяц'!G33=\"\",\"\",'Заполнение данных на месяц'!G33)","v":"Лаврентьев"},"и",60,11,null,null,null,null,null,null,18,null,null,null,null,"з3","з4","з5","з6","з7","з8",74,30,31,"3з",33,34,35,36,37,38,39,40]
[null,null,69,{"$f":"IF('Заполнение данных на месяц'!G34=\"\",\"\",'Заполнение данных на месяц'!G34)","v":"Лазарев"},"и",60,11,null,null,null,null,null,null,18,19,"з0","з1","зз","з3","з4","з5","з6",null,null,null,null,null,null,null,null,35,36]
[null,null,70,{"$f":"IF('Заполнение данных на месяц'!G35=\"\",\"\",'Заполнение данных на месяц'!G35)","v":"Лапин"},"и",60,11,"1з",13,14,75,null,null,null,null,null,"з1","зз","з3","з4","з5","з6","з7","з8",74,30,31,"3з",33,34,35,36,37,38,39,40]
[null,null,71,{"$f":"IF('Заполнение данных на месяц'!G36=\"\",\"\",'Заполнение данных на месяц'!G36)","v":"Ларионов"},"и",60,11,"1з",13,14,75,16,17,18,19,"з0","з1","зз","з3","з4","з5","з6","з7","з8",74,30,null,null,null,34,35,36,37,38,39,40]
[null,null,72,{"$f":"IF('Заполнение данных на месяц'!G37=\"\",\"\",'Заполнение данных на месяц'!G37)","v":"Лебедев"},"и",60,11,"1з",13,14,75,16,17,18,19,"з0","з1","зз",null,null,null,null,null,"з8",74,30,31,"3з",33,34,35,36,37,38,39,40]
[null,null,73,{"$f":"IF('Заполнение данных на месяц'!G38=\"\",\"\",'Заполнение данных на месяц'!G38)","v":"Лихачёв"},"и",60,11,"1з",null,null,null,null,null,18,19,null,null,null,null,null,"з5","з6","з7","з8",74,30,31,null,null,null,null,null,null,null,null,40]
[null,null,74,{"$f":"IF('Заполнение данных на месяц'!G39=\"\",\"\",'Заполнение данных на месяц'!G39)","v":"Лобанов"},"и",60,11,"1з",13,14,75,16,17,18,19,null,null,null,null,null,"з5","з6","з7","з8",74,30,31,null,null,null,null,null,null,null,null,40]
[null,null,75,{"$f":"IF('Заполнение данных на месяц'!G40=\"\",\"\",'Заполнение данных на месяц'!G40)","v":"Логинов"},"и",null,null,null,null,14,75,16,17,18,19,"з0","з1","зз","з3","з4","з5","з6","з7","з8",null,null,null,null,null,null,35,36,37,38,39,40]
[null,null,76,{"$f":"IF('Заполнение данных на месяц'!G41=\"\",\"\",'Заполнение данных на месяц'!G41)","v":"Лукин"},"и",null,null,null,null,14,75,null,null,null,null,null,null,null,"з3","з4","з5","з6","з7","з8",74,30,31,"3з",33,34,35,36,37,38,39,40]
[null,null,77,{"$f":"IF('Заполнение данных на месяц'!G42=\"\",\"\",'Заполнение данных на месяц'!G42)","v":"Лыткин"},"и",60,11,"1з",13,14,75,16,17,18,19,"з0","з1","зз","з3","з4","з5","з6","з7","з8",74,30,31,"3з",33,34,null,null,null,null,39,40]
[null,null,78,{"$f":"IF('Заполнение данных на месяц'!G43=\"\",\"\",'Заполнение данных на месяц'!G43)","v":"Макаров"},"и",60,null,null,null,null,75,null,null,null,null,null,null,null,null,null,"з5","з6","з7","з8",74,30,31,"3з",33,34,null,null,null,null,39,40]
[null,null,79,{"$f":"IF('Заполнение данных на месяц'!G44=\"\",\"\",'Заполнение данных на месяц'!G44)","v":"Максимов"},"и",60,11,null,null,null,null,null,17,18,19,"з0","з1","зз","з3","з4",null,null,null,null,null,30,31,"3з",33,34,35,36,37,38,39,40]
[null,null,80,{"$f":"IF('Заполнение данных на месяц'!G45=\"\",\"\",'Заполнение данных на месяц'!G45)","v":"Мамонтов"},"и",60,11,"1з",13,14,75,16,17,18,19,"з0",null,null,null,null,null,null,"з7",null,null,null,null,null,33,34,null,null,null,null,null,40]
[null,null,81,{"$f":"IF('Заполнение данных на месяц'!G46=\"\",\"\",'Заполнение данных на месяц'!G46)","v":"Марков"},"и",60,null,"1з",13,null,null,null,17,null,null,null,null,null,null,null,null,null,"з7",null,null,null,null,null,33,34,35,36,37,38,39,40]
[null,null,82,{"$f":"IF('Заполнение данных на месяц'!G47=\"\",\"\",'Заполнение данных на месяц'!G47)","v":"Мартынов"},"и",60,null,"1з",13,null,null,null,17,18,19,"з0",null,null,null,null,null,null,"з7","з8",74,30,31,"3з",33,34,null,null,null,null,39,40]
[null,null,83,{"$f":"IF('Заполнение данных на месяц'!G48=\"\",\"\",'Заполнение данных на месяц'!G48)","v":"Маслов"},"и",60,null,"1з",null,null,null,null,17,18,19,"з0","з1","зз","з3","з4","з5","з6","з7","з8",74,null,null,null,null,34,null,null,null,null,39,40]
[null,null,84,{"$f":"IF('Заполнение данных на месяц'!G49=\"\",\"\",'Заполнение данных на месяц'!G49)","v":"Матвеев"},"и",60,null,"1з",null,null,null,null,null,null,19,"з0",null,null,null,null,null,null,null,"з8",74,null,null,null,null,34,null,null,null,null,39,40]
[null,null,85,{"$f":"IF('Заполнение данных на месяц'!G50=\"\",\"\",'Заполнение данных на месяц'!G50)","v":"Медведев"},"и",60,null,"1з",13,null,null,null,null,null,19,"з0",null,null,null,null,null,null,null,"з8",74,30,31,"3з",33,34,null,null,null,null,39,40]
[null,null,86,{"$f":"IF('Заполнение данных на месяц'!G51=\"\",\"\",'Заполнение данных на месяц'!G51)","v":"Мельников"},"и",60,null,"1з",13,14,75,16,17,18,null,null,null,"зз",null,"з4","з5","з6","з7","з8",null,null,null,null,33,34,null,null,null,null,39,40]
[null,null,87,{"$f":"IF('Заполнение данных на месяц'!G52=\"\",\"\",'Заполнение данных на месяц'!G52)","v":"Меркушев"},"и",60,11,"1з",13,null,null,null,17,18,19,"з0","з1","зз",null,"з4","з5",null,null,null,null,null,null,null,33,34,null,null,null,null,39]
[null,null,88,{"$f":"IF('Заполнение данных на месяц'!G53=\"\",\"\",'Заполнение данных на месяц'!G53)","v":"Миронов"},"и",null,null,null,null,14,75,16,17,null,null,null,"з1","зз",null,"з4","з5","з6","з7","з8",null,null,null,null,null,null,null,null,null,38,39]
[null,null,89,{"$f":"IF('Заполнение данных на месяц'!G54=\"\",\"\",'Заполнение данных на месяц'!G54)","v":"Михайлов"},"и",60,null,null,null,null,null,16,17,18,19,"з0","з1","зз","з3","з4","з5","з6","з7","з8",74,30,31,"3з",null,null,null,null,null,38,39]
[null,null,90,{"$f":"IF('Заполнение данных на месяц'!G55=\"\",\"\",'Заполнение данных на месяц'!G55)","v":"Михеев"},"и",60,null,null,null,null,null,16,null,null,null,null,null,null,"з3","з4","з5",null,null,null,null,null,null,null,33,34,null,null,null,38,39,40]
[null,null,91,{"$f":"IF('Заполнение данных на месяц'!G56=\"\",\"\",'Заполнение данных на месяц'!G56)","v":"Мишин"},"и",60,null,null,null,null,null,16,17,18,19,"з0","з1","зз","з3","з4","з5",null,null,null,null,null,null,null,33,34,35,36,37,38,39,40]
[null,null,92,{"$f":"IF('Заполнение данных на месяц'!G57=\"\",\"\",'Заполнение данных на месяц'!G57)","v":"Моисеев"},"и",60,null,null,null,null,null,16,17,18,19,null,null,null,null,null,"з5","з6","з7",null,null,null,null,null,null,null,35,null,null,38]
[null,null,93,{"$f":"IF('Заполнение данных на месяц'!G58=\"\",\"\",'Заполнение данных на месяц'!G58)","v":"Молчанов"},"и",60,11,"1з",13,14,75,16,17,18,19,"з0","з1","зз","з3","з4","з5","з6","з7",null,null,null,null,null,null,null,35,36,37,38]
[null,null,94,{"$f":"IF('Заполнение данных на месяц'!G59=\"\",\"\",'Заполнение данных на месяц'!G59)","v":"Морозов"},"и",60,11,null,null,null,null,16,17,18,19,null,null,null,null,null,null,null,"з7","з8",74,30,31,"3з",33,34,35,36]
[null,null,95,{"$f":"IF('Заполнение данных на месяц'!G60=\"\",\"\",'Заполнение данных на месяц'!G60)","v":"Муравьёв"},"и",60,11,"1з",13,null,null,null,null,null,null,null,null,null,"з3","з4","з5","з6",null,null,null,null,null,null,33,34,35,36,37,38]
[null,null,96,{"$f":"IF('Заполнение данных на месяц'!G61=\"\",\"\",'Заполнение данных на месяц'!G61)","v":"Мухин"},"и",60,null,null,null,null,null,null,17,18,19,null,null,null,null,null,"з5","з6","з7","з8",74,null,null,null,null,null,null,null,37,38]
[null,null,97,{"$f":"IF('Заполнение данных на месяц'!G62=\"\",\"\",'Заполнение данных на месяц'!G62)","v":"Мышкин"},"и",60,11,null,null,null,null,null,null,18,19,"з0","з1",null,null,null,null,null,null,null,null,null,31,"3з",33,34,35]
[null,null,98,{"$f":"IF('Заполнение данных на месяц'!G63=\"\",\"\",'Заполнение данных на месяц'!G63)","v":"Мясников"},"и",60,11,null,null,null,null,null,null,18,19,"з0","з1",null,null,null,"з5","з6","з7","з8",null,null,31,"3з",null,null,null,null,null,38,39,40]
[null,null,99,{"$f":"IF('Заполнение данных на месяц'!G64=\"\",\"\",'Заполнение данных на месяц'!G64)","v":"Назаров"},"и",60,11,null,null,null,null,null,17,18,null,null,null,null,null,null,null,null,null,null,null,null,31,"3з",33,34,null,null,37,38,39,40]
[null,null,100,{"$f":"IF('Заполнение данных на месяц'!G65=\"\",\"\",'Заполнение данных на месяц'!G65)","v":"Наумов"},"и",60,11,null,null,null,null,null,17,18,19,"з0","з1","зз",null,null,null,null,null,null,null,null,31,"3з",null,null,null,null,null,38,39,40]
[null,null,101,{"$f":"IF('Заполнение данных на месяц'!G66=\"\",\"\",'Заполнение данных на месяц'!G66)","v":"Некрасов"},"и","т0",null,null,null,null,75,"1т",17,null,null,null,"з1","зз","зк","з4",null,null,null,null,74,"к0","к1","кз","кк",null,null,null,"к7","к8","к9",40]
[null,null,102,{"$f":"IF('Заполнение данных на месяц'!G67=\"\",\"\",'Заполнение данных на месяц'!G67)","v":"Нестеров"},"и","т0",11,"1з","1к",14,75,"1т",null,null,null,null,null,"зз","зк","з4","з5","зт","з7",null,null,null,null,null,null,null,null,"кт","к7","к8","к9",40]
[null,null,103,{"$f":"IF('Заполнение данных на месяц'!G68=\"\",\"\",'Заполнение данных на месяц'!G68)","v":"Никитин"},"и",null,11,null,null,null,75,"1т",17,18,null,null,null,"зз","зк","з4",null,"зт","з7","з8",74,null,null,"кз",null,"к4","к5","кт"]
[null,null,104,{"$f":"IF('Заполнение данных на месяц'!G69=\"\",\"\",'Заполнение данных на месяц'!G69)","v":"Никифоров"},"и",null,11,"1з","1к",14,null,null,17,18,19,"з0",null,null,null,"з4","з5",null,null,null,74,null,null,"кз","кк","к4","к5","кт","к7","к8","к9",40]
[null,null,105,{"$f":"IF('Заполнение данных на месяц'!G70=\"\",\"\",'Заполнение данных на месяц'!G70)","v":"Николаев"},"и","т0",11,"1з","1к",null,75,"1т",17,18,19,"з0","з1","зз","зк","з4","з5",null,null,null,74,null,null,null,null,null,null,"кт","к7","к8","к9"]
[null,null,106,{"$f":"IF('Заполнение данных на месяц'!G71=\"\",\"\",'Заполнение данных на месяц'!G71)","v":"Никонов"},"и","т0",null,"1з","1к",14,75,null,null,18,19,"з0","з1","зз","зк","з4","з5","зт","з7","з8",74,"к0","к1","кз","кк","к4","к5","кт","к7",null,"к9"]
[null,null,107,{"$f":"IF('Заполнение данных на месяц'!G72=\"\",\"\",'Заполнение данных на месяц'!G72)","v":"Новиков"},"и","т0",null,null,null,14,75,null,null,18,19,null,null,null,null,null,"з5","зт","з7","з8",74,"к0","к1","кз",null,"к4","к5","кт","к7",null,"к9"]
[null,null,108,{"$f":"IF('Заполнение данных на месяц'!G73=\"\",\"\",'Заполнение данных на месяц'!G73)","v":"Носков"},"и",null,null,null,null,14,75,"1т",17,18,19,null,"з1","зз","зк",null,null,null,null,null,null,null,null,null,null,"к4","к5",null,"к7",null,"к9"]
[null,null,109,{"$f":"IF('Заполнение данных на месяц'!G74=\"\",\"\",'Заполнение данных на месяц'!G74)","v":"Носов"},"и","т0",11,"1з","1к",14,null,null,null,null,19,"з0","з1",null,"зк",null,null,null,null,null,null,null,null,null,null,"к4","к5",null,"к7",null,"к9",40]
[null,null,110,{"$f":"IF('Заполнение данных на месяц'!G75=\"\",\"\",'Заполнение данных на месяц'!G75)","v":"Овчинников"},"и",null,11,"1з","1к",14,75,"1т",17,18,19,"з0","з1",null,"зк",null,null,null,"з7","з8",74,"к0",null,null,null,"к4","к5",null,"к7","к8","к9",40]
[null,null,111,{"$f":"IF('Заполнение данных на месяц'!G76=\"\",\"\",'Заполнение данных на месяц'!G76)","v":"Одинцов"},"и","т0",null,null,null,14,75,"1т",null,null,null,null,"з1",null,"зк","з4","з5","зт","з7","з8",74,"к0","к1","кз","кк","к4","к5","кт","к7","к8","к9",40]
[null,null,112,{"$f":"IF('Заполнение данных на месяц'!G77=\"\",\"\",'Заполнение данных на месяц'!G77)","v":"Орехов"},"и","т0",11,"1з","1к",null,75,"1т",17,18,19,"з0","з1","зз","зк","з4",null,"зт","з7",null,null,null,null,null,null,"к4","к5","кт"]
[null,null,113,{"$f":"IF('Заполнение данных на месяц'!G78=\"\",\"\",'Заполнение данных на месяц'!G78)","v":"Орлов"},"и","т0",11,null,null,null,null,null,null,18,19,null,"з1","зз","зк","з4",null,"зт","з7","з8",74,"к0","к1","кз","кк","к4","к5","кт","к7","к8","к9",40]
[null,null,114,{"$f":"IF('Заполнение данных на месяц'!G79=\"\",\"\",'Заполнение данных на месяц'!G79)","v":"Осипов"},"и","т0",11,null,null,null,null,null,null,18,19,"з0","з1","зз","зк","з4",null,"зт",null,null,null,"к0","к1","кз",null,null,null,"кт",null,null,null,40]
[null,null,115,{"$f":"IF('Заполнение данных на месяц'!G80=\"\",\"\",'Заполнение данных на месяц'!G80)","v":"Павлов"},"и","т0",11,null,null,null,null,null,null,null,null,null,null,null,"зк","з4",null,null,null,null,74,"к0","к1","кз","кк","к4","к5","кт","к7","к8","к9",40]
[null,null,116,{"$f":"IF('Заполнение данных на месяц'!G81=\"\",\"\",'Заполнение данных на месяц'!G81)","v":"Панов"},"и","т0",11,"1з","1к",14,75,"1т",17,18,19,"з0","з1","зз","зк","з4",null,null,null,null,74,"к0","к1","кз"]
[null,null,117,{"$f":"IF('Заполнение данных на месяц'!G82=\"\",\"\",'Заполнение данных на месяц'!G82)","v":"Панфилов"},"и","т0",11,null,null,null,75,"1т",17,18,null,null,null,null,"зк","з4",null,"зт","з7","з8",74,null,null,null,null,null,null,"кт","к7","к8","к9",40]
[null,null,118,{"$f":"IF('Заполнение данных на месяц'!G83=\"\",\"\",'Заполнение данных на месяц'!G83)","v":"Пахомов"},"и","т0",11,null,null,null,null,null,null,18,null,null,null,null,"зк","з4","з5","зт","з7","з8",74,"к0","к1","кз","кк","к4","к5","кт","к7","к8","к9",40]
[null,null,119,{"$f":"IF('Заполнение данных на месяц'!G84=\"\",\"\",'Заполнение данных на месяц'!G84)","v":"Пестов"},"и","т0",11,null,null,null,null,null,null,18,19,"з0","з1","зз","зк","з4","з5","зт",null,null,null,null,null,null,null,null,"к5","кт"]
[null,null,120,{"$f":"IF('Заполнение данных на месяц'!G85=\"\",\"\",'Заполнение данных на месяц'!G85)","v":"Петров"},"и","т0",11,"1з","1к",14,75,null,null,null,null,null,"з1","зз","зк","з4","з5","зт","з7","з8",74,"к0","к1","кз","кк","к4","к5","кт","к7","к8","к9",40]
[null,null,121,{"$f":"IF('Заполнение данных на месяц'!G86=\"\",\"\",'Заполнение данных на месяц'!G86)","v":"Петухов"},"и","т0",11,"1з","1к",14,75,"1т",17,18,19,"з0","з1","зз","зк","з4","з5","зт","з7","з8",74,"к0",null,null,null,"к4","к5","кт","к7","к8","к9",40]
[null,null,122,{"$f":"IF('Заполнение данных на месяц'!G87=\"\",\"\",'Заполнение данных на месяц'!G87)","v":"Поляков"},"и","т0",11,"1з","1к",14,75,"1т",17,18,19,"з0","з1","зз",null,null,null,null,null,"з8",74,"к0","к1","кз","кк","к4","к5","кт","к7","к8","к9",40]
[null,null,123,{"$f":"IF('Заполнение данных на месяц'!G88=\"\",\"\",'Заполнение данных на месяц'!G88)","v":"Пономарёв"},"и","т0",11,"1з",null,null,null,null,null,18,19,null,null,null,null,null,"з5","зт","з7","з8",74,"к0","к1",null,null,null,null,null,null,null,null,40]
[null,null,124,{"$f":"IF('Заполнение данных на месяц'!G89=\"\",\"\",'Заполнение данных на месяц'!G89)","v":"Попов"},"и","т0",11,"1з","1к",14,75,"1т",17,18,19,null,null,null,null,null,"з5","зт","з7","з8",74,"к0","к1",null,null,null,null,null,null,null,null,40]
[null,null,125,{"$f":"IF('Заполнение данных на месяц'!G90=\"\",\"\",'Заполнение данных на месяц'!G90)","v":"Потапов"},"и",null,null,null,null,14,75,"1т",17,18,19,"з0","з1","зз","зк","з4","з5","зт","з7","з8",null,null,null,null,null,null,"к5","кт","к7","к8","к9",40]
[null,null,126,{"$f":"IF('Заполнение данных на месяц'!G91=\"\",\"\",'Заполнение данных на месяц'!G91)","v":"Прохоров"},"и",null,null,null,null,14,75,null,null,null,null,null,null,null,"зк","з4","з5","зт","з7","з8",74,"к0","к1","кз","кк","к4","к5","кт","к7","к8","к9",40]
[null,null,127,{"$f":"IF('Заполнение данных на месяц'!G92=\"\",\"\",'Заполнение данных на месяц'!G92)","v":"Рогов"},"и","т0",11,"1з","1к",14,75,"1т",17,18,19,"з0","з1","зз","зк","з4","з5","зт","з7","з8",74,"к0","к1","кз","кк","к4",null,null,null,null,"к9",40]
[null,null,128,{"$f":"IF('Заполнение данных на месяц'!G93=\"\",\"\",'Заполнение данных на месяц'!G93)","v":"Родионов"},"и","т0",null,null,null,null,75,null,null,null,null,null,null,null,null,null,"з5","зт","з7","з8",74,"к0","к1","кз","кк","к4",null,null,null,null,"к9",40]
[null,null,129,{"$f":"IF('Заполнение данных на месяц'!G94=\"\",\"\",'Заполнение данных на месяц'!G94)","v":"Рожков"},"и","т0",11,null,null,null,null,null,17,18,19,"з0","з1","зз","зк","з4",null,null,null,null,null,"к0","к1","кз","кк","к4","к5","кт","к7","к8","к9",40]
[null,null,130,{"$f":"IF('Заполнение данных на месяц'!G95=\"\",\"\",'Заполнение данных на месяц'!G95)","v":"Романов"},"и","т0",11,"1з","1к",14,75,"1т",17,18,19,"з0",null,null,null,null,null,null,"з7",null,null,null,null,null,"кк","к4",null,null,null,null,null,40]
[null,null,131,{"$f":"IF('Заполнение данных на месяц'!G96=\"\",\"\",'Заполнение данных на месяц'!G96)","v":"Русаков"},"и","т0",null,"1з","1к",null,null,null,17,null,null,null,null,null,null,null,null,null,"з7",null,null,null,null,null,"кк","к4","к5","кт","к7","к8","к9",40]
[null,null,132,{"$f":"IF('Заполнение данных на месяц'!G97=\"\",\"\",'Заполнение данных на месяц'!G97)","v":"Рыбаков"},"и","т0",null,"1з","1к",null,null,null,17,18,19,"з0",null,null,null,null,null,null,"з7","з8",74,"к0","к1","кз","кк","к4",null,null,null,null,"к9",40]
[null,null,133,{"$f":"IF('Заполнение данных на месяц'!G98=\"\",\"\",'Заполнение данных на месяц'!G98)","v":"Рябов"},"и","т0",null,"1з",null,null,null,null,17,18,19,"з0","з1","зз","зк","з4","з5","зт","з7","з8",74,null,null,null,null,"к4",null,null,null,null,"к9",40]
[null,null,134,{"$f":"IF('Заполнение данных на месяц'!G99=\"\",\"\",'Заполнение данных на месяц'!G99)","v":"Савельев"},"и","т0",null,"1з",null,null,null,null,null,null,19,"з0",null,null,null,null,null,null,null,"з8",74,null,null,null,null,"к4",null,null,null,null,"к9",40]
[null,null,135,{"$f":"IF('Заполнение данных на месяц'!G100=\"\",\"\",'Заполнение данных на месяц'!G100)","v":"Савин"},"и","т0",null,"1з","1к",null,null,null,null,null,19,"з0",null,null,null,null,null,null,null,"з8",74,"к0","к1","кз","кк","к4",null,null,null,null,"к9",40]
[null,null,136,{"$f":"IF('Заполнение данных на месяц'!G101=\"\",\"\",'Заполнение данных на месяц'!G101)","v":"Сазонов"},"и","т0",null,"1з","1к",14,75,"1т",17,18,null,null,null,"зз",null,"з4","з5","зт","з7","з8",null,null,null,null,"кк","к4",null,null,null,null,"к9",40]
[null,null,137,{"$f":"IF('Заполнение данных на месяц'!G102=\"\",\"\",'Заполнение данных на месяц'!G102)","v":"Самойлов"},"и","т0",11,"1з","1к",null,null,null,17,18,19,"з0","з1","зз",null,"з4","з5",null,null,null,null,null,null,null,"кк","к4",null,null,null,null,"к9"]
[null,null,138,{"$f":"IF('Заполнение данных на месяц'!G103=\"\",\"\",'Заполнение данных на месяц'!G103)","v":"Самсонов"},"и",null,null,null,null,14,75,"1т",17,null,null,null,"з1","зз",null,"з4","з5","зт","з7","з8",null,null,null,null,null,null,null,null,null,"к8","к9"]
[null,null,139,{"$f":"IF('Заполнение данных на месяц'!G104=\"\",\"\",'Заполнение данных на месяц'!G104)","v":"Сафонов"},"и","т0",null,null,null,null,null,"1т",17,18,19,"з0","з1","зз","зк","з4","з5","зт","з7","з8",74,"к0","к1","кз",null,null,null,null,null,"к8","к9"]
[null,null,140,{"$f":"IF('Заполнение данных на месяц'!G105=\"\",\"\",'Заполнение данных на месяц'!G105)","v":"Селезнёв"},"и","т0",null,null,null,null,null,"1т",null,null,null,null,null,null,"зк","з4","з5",null,null,null,null,null,null,null,"кк","к4",null,null,null,"к8","к9",40]
[null,null,141,{"$f":"IF('Заполнение данных на месяц'!G106=\"\",\"\",'Заполнение данных на месяц'!G106)","v":"Селиверстов"},"и","т0",null,null,null,null,null,"1т",17,18,19,"з0","з1","зз","зк","з4","з5",null,null,null,null,null,null,null,"кк","к4","к5","кт","к7","к8","к9",40]
[null,null,142,{"$f":"IF('Заполнение данных на месяц'!G107=\"\",\"\",'Заполнение данных на месяц'!G107)","v":"Семёнов"},"и","т0",null,null,null,null,null,"1т",17,18,19,null,null,null,null,null,"з5","зт","з7",null,null,null,null,null,null,null,"к5",null,null,"к8"]
[null,null,143,{"$f":"IF('Заполнение данных на месяц'!G108=\"\",\"\",'Заполнение данных на месяц'!G108)","v":"Сергеев"},"и","т0",11,"1з","1к",14,75,"1т",17,18,19,"з0","з1","зз","зк","з4","з5","зт","з7",null,null,null,null,null,null,null,"к5","кт","к7","к8"]
[null,null,144,{"$f":"IF('Заполнение данных на месяц'!G109=\"\",\"\",'Заполнение данных на месяц'!G109)","v":"Сидоров"},"и","т0",11,null,null,null,null,"1т",17,18,19,null,null,null,null,null,null,null,"з7","з8",74,"к0","к1","кз","кк","к4","к5","кт"]
[null,null,145,{"$f":"IF('Заполнение данных на месяц'!G110=\"\",\"\",'Заполнение данных на месяц'!G110)","v":"Силин"},"и","т0",11,"1з","1к",null,null,null,null,null,null,null,null,null,"зк","з4","з5","зт",null,null,null,null,null,null,"кк","к4","к5","кт","к7","к8"]
[null,null,146,{"$f":"IF('Заполнение данных на месяц'!G111=\"\",\"\",'Заполнение данных на месяц'!G111)","v":"Симонов"},"и","т0",null,null,null,null,null,null,17,18,19,null,null,null,null,null,"з5","зт","з7","з8",74,null,null,null,null,null,null,null,"к7","к8"]
[null,null,147,{"$f":"IF('Заполнение данных на месяц'!G112=\"\",\"\",'Заполнение данных на месяц'!G112)","v":"Ситников"},"и","т0",11,null,null,null,null,null,null,18,19,"з0","з1",null,null,null,null,null,null,null,null,null,"к1","кз","кк","к4","к5"]
[null,null,148,{"$f":"IF('Заполнение данных на месяц'!G113=\"\",\"\",'Заполнение данных на месяц'!G113)","v":"Соболев"},"и","т0",11,null,null,null,null,null,null,18,19,"з0","з1",null,null,null,"з5","зт","з7","з8",null,null,"к1","кз",null,null,null,null,null,"к8","к9",40]
[null,null,149,{"$f":"IF('Заполнение данных на месяц'!G114=\"\",\"\",'Заполнение данных на месяц'!G114)","v":"Соколов"},"и","т0",11,null,null,null,null,null,17,18,null,null,null,null,null,null,null,null,null,null,null,null,"к1","кз","кк","к4",null,null,"к7","к8","к9",40]
[null,null,150,{"$f":"IF('Заполнение данных на месяц'!G115=\"\",\"\",'Заполнение данных на месяц'!G115)","v":"Соловьёв"},"и","т0",11,null,null,null,null,null,17,18,19,"з0","з1","зз",null,null,null,null,null,null,null,null,"к1","кз",null,null,null,null,null,"к8","к9",40]

{"sheet":"1","index":2,"n_rows":60,"n_cols":10,"rows_kept":60,"cut":false,"hidden":false,"merged":[[13,6,13,11],[9,2,9,3],[2,15,2,16],[3,7,3,8],[3,10,3,13],[4,3,4,4],[5,7,5,8],[5,10,5,13]]}
[]
[]
[]
[]
[]
[]
[]
[]
[]
[null,null,{"$f":"IF('Заполнение данных на месяц'!C15:D15=\"\",\"\",'Заполнение данных на месяц'!C15:D15)","v":"Начальство"}]
[null,null,{"$f":"IF('Заполнение данных на месяц'!C16=\"\",\"\",'Заполнение данных на месяц'!C16)","v":1},{"$f":"IF('Заполнение данных на месяц'!D16=\"\",\"\",'Заполнение данных на месяц'!D16)","v":"Быков"},null,null,{"$f":"IF(C10=\"\",\"\",C10)","v":"Начальство"},"Виноградов",null,"Возможно ли реализовать, чтобы при нажатии на фамилию на листе 1 и 2, в G18:G48 расстанавливались значения с листа График."]
[null,null,{"$f":"IF('Заполнение данных на месяц'!C17=\"\",\"\",'Заполнение данных на месяц'!C17)","v":2},{"$f":"IF('Заполнение данных на месяц'!D17=\"\",\"\",'Заполнение данных на месяц'!D17)","v":"Васильев"},null,null,null,null,null," А в строках H11 высвечивалась бы фамилия кого я выбрал."]
[null,null,{"$f":"IF('Заполнение данных на месяц'!C18=\"\",\"\",'Заполнение данных на месяц'!C18)","v":3},{"$f":"IF('Заполнение данных на месяц'!D18=\"\",\"\",'Заполнение данных на месяц'!D18)","v":"Веселов"},null,null,null,null,null,"Мне требуется в листе 1 - с 1-го по 50 сотрудника, а в листе 2 - с 51-го по 150 сотрудника."]
[null,null,{"$f":"IF('Заполнение данных на месяц'!C19=\"\",\"\",'Заполнение данных на месяц'!C19)","v":4},{"$f":"IF('Заполнение данных на месяц'!D19=\"\",\"\",'Заполнение данных на месяц'!D19)","v":"Виноградов"},null,null,"Здесь с 1-го по 50 сотрудника"]
[null,null,{"$f":"IF('Заполнение данных на месяц'!C20=\"\",\"\",'Заполнение данных на месяц'!C20)","v":5},{"$f":"IF('Заполнение данных на месяц'!D20=\"\",\"\",'Заполнение данных на месяц'!D20)","v":"Вишняков"}]
[null,null,{"$f":"IF('Заполнение данных на месяц'!C21=\"\",\"\",'Заполнение данных на месяц'!C21)","v":6},{"$f":"IF('Заполнение данных на месяц'!D21=\"\",\"\",'Заполнение данных на месяц'!D21)","v":"Владимиров"}]
[null,null,{"$f":"IF('Заполнение данных на месяц'!C22=\"\",\"\",'Заполнение данных на месяц'!C22)","v":7},{"$f":"IF('Заполнение данных на месяц'!D22=\"\",\"\",'Заполнение данных на месяц'!D22)","v":"Власов"},null,null,"График"]
[null,null,{"$f":"IF('Заполнение данных на месяц'!C23=\"\",\"\",'Заполнение данных на месяц'!C23)","v":8},{"$f":"IF('Заполнение данных на месяц'!D23=\"\",\"\",'Заполнение данных на месяц'!D23)","v":"Волков"},null,null,{"$f":"VLOOKUP($H$11,График!$D$11:$AJ$160,ROW(A3),0)","v":0},"2016-09-01"]
[null,null,{"$f":"IF('Заполнение данных на месяц'!C24=\"\",\"\",'Заполнение данных на месяц'!C24)","v":9},{"$f":"IF('Заполнение данных на месяц'!D24=\"\",\"\",'Заполнение данных на месяц'!D24)","v":"Воробьёв"},null,null,{"$f":"VLOOKUP($H$11,График!$D$11:$AJ$160,ROW(A4),0)","v":"зз"},"2016-09-02"]
[null,null,{"$f":"IF('Заполнение данных на месяц'!C25=\"\",\"\",'Заполнение данных на месяц'!C25)","v":10},{"$f":"IF('Заполнение данных на месяц'!D25=\"\",\"\",'Заполнение данных на месяц'!D25)","v":"Воронов"},null,null,{"$f":"VLOOKUP($H$11,График!$D$11:$AJ$160,ROW(A5),0)","v":"з2"},"2016-09-03"]
[null,null,{"$f":"IF('Заполнение данных на месяц'!C26=\"\",\"\",'Заполнение данных на месяц'!C26)","v":11},{"$f":"IF('Заполнение данных на месяц'!D26=\"\",\"\",'Заполнение данных на месяц'!D26)","v":"Воронцов"},null,null,{"$f":"VLOOKUP($H$11,График!$D$11:$AJ$160,ROW(A6),0)","v":"з3"},"2016-09-04"]
[null,null,{"$f":"IF('Заполнение данных на месяц'!C27=\"\",\"\",'Заполнение данных на месяц'!C27)","v":12},{"$f":"IF('Заполнение данных на месяц'!D27=\"\",\"\",'Заполнение данных на месяц'!D27)","v":"Гаврилов"},null,null,{"$f":"VLOOKUP($H$11,График!$D$11:$AJ$160,ROW(A7),0)","v":"з4"},"2016-09-05"]
[null,null,{"$f":"IF('Заполнение данных на месяц'!C28=\"\",\"\",'Заполнение данных на месяц'!C28)","v":13},{"$f":"IF('Заполнение данных на месяц'!D28=\"\",\"\",'Заполнение данных на месяц'!D28)","v":"Галкин"},null,null,{"$f":"VLOOKUP($H$11,График!$D$11:$AJ$160,ROW(A8),0)","v":0},"2016-09-06"]
[null,null,{"$f":"IF('Заполнение данных на месяц'!C29=\"\",\"\",'Заполнение данных на месяц'!C29)","v":14},{"$f":"IF('Заполнение данных на месяц'!D29=\"\",\"\",'Заполнение данных на месяц'!D29)","v":"Герасимов"},null,null,{"$f":"VLOOKUP($H$11,График!$D$11:$AJ$160,ROW(A9),0)","v":0},"2016-09-07"]
[null,null,{"$f":"IF('Заполнение данных на месяц'!C30=\"\",\"\",'Заполнение данных на месяц'!C30)","v":15},{"$f":"IF('Заполнение данных на месяц'!D30=\"\",\"\",'Заполнение данных на месяц'!D30)","v":"Голубев"},null,null,{"$f":"VLOOKUP($H$11,График!$D$11:$AJ$160,ROW(A10),0)","v":"з7"},"2016-09-08"]
[null,null,{"$f":"IF('Заполнение данных на месяц'!C31=\"\",\"\",'Заполнение данных на месяц'!C31)","v":16},{"$f":"IF('Заполнение данных на месяц'!D31=\"\",\"\",'Заполнение данных на месяц'!D31)","v":"Горбачёв"},null,null,{"$f":"VLOOKUP($H$11,График!$D$11:$AJ$160,ROW(A11),0)","v":"з8"},"2016-09-09"]
[null,null,{"$f":"IF('Заполнение данных на месяц'!C32=\"\",\"\",'Заполнение данных на месяц'!C32)","v":17},{"$f":"IF('Заполнение данных на месяц'!D32=\"\",\"\",'Заполнение данных на месяц'!D32)","v":"Горбунов"},null,null,{"$f":"VLOOKUP($H$11,График!$D$11:$AJ$160,ROW(A12),0)","v":"з9"},"2016-09-10"]
[null,null,{"$f":"IF('Заполнение данных на месяц'!C33=\"\",\"\",'Заполнение данных на месяц'!C33)","v":18},{"$f":"IF('Заполнение данных на месяц'!D33=\"\",\"\",'Заполнение данных на месяц'!D33)","v":"Гордеев"},null,null,{"$f":"VLOOKUP($H$11,График!$D$11:$AJ$160,ROW(A13),0)","v":20},"2016-09-11"]
[null,null,{"$f":"IF('Заполнение данных на месяц'!C34=\"\",\"\",'Заполнение данных на месяц'!C34)","v":19},{"$f":"IF('Заполнение данных на месяц'!D34=\"\",\"\",'Заполнение данных на месяц'!D34)","v":"Горшков"},null,null,{"$f":"VLOOKUP($H$11,График!$D$11:$AJ$160,ROW(A14),0)","v":0},"2016-09-12"]
[null,null,{"$f":"IF('Заполнение данных на месяц'!C35=\"\",\"\",'Заполнение данных на месяц'!C35)","v":20},{"$f":"IF('Заполнение данных на месяц'!D35=\"\",\"\",'Заполнение данных на месяц'!D35)","v":"Григорьев"},null,null,{"$f":"VLOOKUP($H$11,График!$D$11:$AJ$160,ROW(A15),0)","v":0},"2016-09-13"]
[null,null,{"$f":"IF('Заполнение данных на месяц'!C36=\"\",\"\",'Заполнение данных на месяц'!C36)","v":21},{"$f":"IF('Заполнение данных на месяц'!D36=\"\",\"\",'Заполнение данных на месяц'!D36)","v":"Гришин"},null,null,{"$f":"VLOOKUP($H$11,График!$D$11:$AJ$160,ROW(A16),0)","v":0},"2016-09-14"]
[null,null,{"$f":"IF('Заполнение данных на месяц'!C37=\"\",\"\",'Заполнение данных на месяц'!C37)","v":22},{"$f":"IF('Заполнение данных на месяц'!D37=\"\",\"\",'Заполнение данных на месяц'!D37)","v":"Громов"},null,null,{"$f":"VLOOKUP($H$11,График!$D$11:$AJ$160,ROW(A17),0)","v":24},"2016-09-15"]
[null,null,{"$f":"IF('Заполнение данных на месяц'!C38=\"\",\"\",'Заполнение данных на месяц'!C38)","v":23},{"$f":"IF('Заполнение данных на месяц'!D38=\"\",\"\",'Заполнение данных на месяц'!D38)","v":"Гуляев"},null,null,{"$f":"VLOOKUP($H$11,График!$D$11:$AJ$160,ROW(A18),0)","v":25},"2016-09-16"]
[null,null,{"$f":"IF('Заполнение данных на месяц'!C39=\"\",\"\",'Заполнение данных на месяц'!C39)","v":24},{"$f":"IF('Заполнение данных на месяц'!D39=\"\",\"\",'Заполнение данных на месяц'!D39)","v":"Гурьев"},null,null,{"$f":"VLOOKUP($H$11,График!$D$11:$AJ$160,ROW(A19),0)","v":0},"2016-09-17"]
[null,null,{"$f":"IF('Заполнение данных на месяц'!C40=\"\",\"\",'Заполнение данных на месяц'!C40)","v":25},{"$f":"IF('Заполнение данных на месяц'!D40=\"\",\"\",'Заполнение данных на месяц'!D40)","v":"Гусев"},null,null,{"$f":"VLOOKUP($H$11,График!$D$11:$AJ$160,ROW(A20),0)","v":0},"2016-09-18"]
[null,null,{"$f":"IF('Заполнение данных на месяц'!C41=\"\",\"\",'Заполнение данных на месяц'!C41)","v":26},{"$f":"IF('Заполнение данных на месяц'!D41=\"\",\"\",'Заполнение данных на месяц'!D41)","v":"Гущин"},null,null,{"$f":"VLOOKUP($H$11,График!$D$11:$AJ$160,ROW(A21),0)","v":0},"2016-09-19"]
[null,null,{"$f":"IF('Заполнение данных на месяц'!C42=\"\",\"\",'Заполнение данных на месяц'!C42)","v":27},{"$f":"IF('Заполнение данных на месяц'!D42=\"\",\"\",'Заполнение данных на месяц'!D42)","v":"Давыдов"},null,null,{"$f":"VLOOKUP($H$11,График!$D$11:$AJ$160,ROW(A22),0)","v":29},"2016-09-20"]
[null,null,{"$f":"IF('Заполнение данных на месяц'!C43=\"\",\"\",'Заполнение данных на месяц'!C43)","v":28},{"$f":"IF('Заполнение данных на месяц'!D43=\"\",\"\",'Заполнение данных на месяц'!D43)","v":"Данилов"},null,null,{"$f":"VLOOKUP($H$11,График!$D$11:$AJ$160,ROW(A23),0)","v":0},"2016-09-21"]
[null,null,{"$f":"IF('Заполнение данных на месяц'!C44=\"\",\"\",'Заполнение данных на месяц'!C44)","v":29},{"$f":"IF('Заполнение данных на месяц'!D44=\"\",\"\",'Заполнение данных на месяц'!D44)","v":"Дементьев"},null,null,{"$f":"VLOOKUP($H$11,График!$D$11:$AJ$160,ROW(A24),0)","v":0},"2016-09-22"]
[null,null,{"$f":"IF('Заполнение данных на месяц'!C45=\"\",\"\",'Заполнение данных на месяц'!C45)","v":30},{"$f":"IF('Заполнение данных на месяц'!D45=\"\",\"\",'Заполнение данных на месяц'!D45)","v":"Денисов"},null,null,{"$f":"VLOOKUP($H$11,График!$D$11:$AJ$160,ROW(A25),0)","v":32},"2016-09-23"]
[null,null,{"$f":"IF('Заполнение данных на месяц'!C46=\"\",\"\",'Заполнение данных на месяц'!C46)","v":31},{"$f":"IF('Заполнение данных на месяц'!D46=\"\",\"\",'Заполнение данных на месяц'!D46)","v":"Дмитриев"},null,null,{"$f":"VLOOKUP($H$11,График!$D$11:$AJ$160,ROW(A26),0)","v":33},"2016-09-24"]
[null,null,{"$f":"IF('Заполнение данных на месяц'!C47=\"\",\"\",'Заполнение данных на месяц'!C47)","v":32},{"$f":"IF('Заполнение данных на месяц'!D47=\"\",\"\",'Заполнение данных на месяц'!D47)","v":"Доронин"},null,null,{"$f":"VLOOKUP($H$11,График!$D$11:$AJ$160,ROW(A27),0)","v":34},"2016-09-25"]
[null,null,{"$f":"IF('Заполнение данных на месяц'!C48=\"\",\"\",'Заполнение данных на месяц'!C48)","v":33},{"$f":"IF('Заполнение данных на месяц'!D48=\"\",\"\",'Заполнение данных на месяц'!D48)","v":"Дорофеев"},null,null,{"$f":"VLOOKUP($H$11,График!$D$11:$AJ$160,ROW(A28),0)","v":35},"2016-09-26"]
[null,null,{"$f":"IF('Заполнение данных на месяц'!C49=\"\",\"\",'Заполнение данных на месяц'!C49)","v":34},{"$f":"IF('Заполнение данных на месяц'!D49=\"\",\"\",'Заполнение данных на месяц'!D49)","v":"Дроздов"},null,null,{"$f":"VLOOKUP($H$11,График!$D$11:$AJ$160,ROW(A29),0)","v":36},"2016-09-27"]
[null,null,{"$f":"IF('Заполнение данных на месяц'!C50=\"\",\"\",'Заполнение данных на месяц'!C50)","v":35},{"$f":"IF('Заполнение данных на месяц'!D50=\"\",\"\",'Заполнение данных на месяц'!D50)","v":"Дьячков"},null,null,{"$f":"VLOOKUP($H$11,График!$D$11:$AJ$160,ROW(A30),0)","v":37},"2016-09-28"]
[null,null,{"$f":"IF('Заполнение данных на месяц'!C51=\"\",\"\",'Заполнение данных на месяц'!C51)","v":36},{"$f":"IF('Заполнение данных на месяц'!D51=\"\",\"\",'Заполнение данных на месяц'!D51)","v":"Евдокимов"},null,null,{"$f":"VLOOKUP($H$11,График!$D$11:$AJ$160,ROW(A31),0)","v":38},"2016-09-29"]
[null,null,{"$f":"IF('Заполнение данных на месяц'!C52=\"\",\"\",'Заполнение данных на месяц'!C52)","v":37},{"$f":"IF('Заполнение данных на месяц'!D52=\"\",\"\",'Заполнение данных на месяц'!D52)","v":"Евсеев"},null,null,{"$f":"VLOOKUP($H$11,График!$D$11:$AJ$160,ROW(A32),0)","v":39},"2016-09-30"]
[null,null,{"$f":"IF('Заполнение данных на месяц'!C53=\"\",\"\",'Заполнение данных на месяц'!C53)","v":38},{"$f":"IF('Заполнение данных на месяц'!D53=\"\",\"\",'Заполнение данных на месяц'!D53)","v":"Егоров"},null,null,{"$f":"VLOOKUP($H$11,График!$D$11:$AJ$160,ROW(A33),0)","v":40},"2016-10-01"]
[null,null,{"$f":"IF('Заполнение данных на месяц'!C54=\"\",\"\",'Заполнение данных на месяц'!C54)","v":39},{"$f":"IF('Заполнение данных на месяц'!D54=\"\",\"\",'Заполнение данных на месяц'!D54)","v":"Елисеев"}]
[null,null,{"$f":"IF('Заполнение данных на месяц'!C55=\"\",\"\",'Заполнение данных на месяц'!C55)","v":40},{"$f":"IF('Заполнение данных на месяц'!D55=\"\",\"\",'Заполнение данных на месяц'!D55)","v":"Емельянов"}]
[null,null,{"$f":"IF('Заполнение данных на месяц'!C56=\"\",\"\",'Заполнение данных на месяц'!C56)","v":41},{"$f":"IF('Заполнение данных на месяц'!D56=\"\",\"\",'Заполнение данных на месяц'!D56)","v":"Ермаков"}]
[null,null,{"$f":"IF('Заполнение данных на месяц'!C57=\"\",\"\",'Заполнение данных на месяц'!C57)","v":42},{"$f":"IF('Заполнение данных на месяц'!D57=\"\",\"\",'Заполнение данных на месяц'!D57)","v":"Ершов"}]
[null,null,{"$f":"IF('Заполнение данных на месяц'!C58=\"\",\"\",'Заполнение данных на месяц'!C58)","v":43},{"$f":"IF('Заполнение данных на месяц'!D58=\"\",\"\",'Заполнение данных на месяц'!D58)","v":"Ефимов"}]
[null,null,{"$f":"IF('Заполнение данных на месяц'!C59=\"\",\"\",'Заполнение данных на месяц'!C59)","v":44},{"$f":"IF('Заполнение данных на месяц'!D59=\"\",\"\",'Заполнение данных на месяц'!D59)","v":"Ефремов"}]
[null,null,{"$f":"IF('Заполнение данных на месяц'!C60=\"\",\"\",'Заполнение данных на месяц'!C60)","v":45},{"$f":"IF('Заполнение данных на месяц'!D60=\"\",\"\",'Заполнение данных на месяц'!D60)","v":"Жданов"}]
[null,null,{"$f":"IF('Заполнение данных на месяц'!C61=\"\",\"\",'Заполнение данных на месяц'!C61)","v":46},{"$f":"IF('Заполнение данных на месяц'!D61=\"\",\"\",'Заполнение данных на месяц'!D61)","v":"Жуков"}]
[null,null,{"$f":"IF('Заполнение данных на месяц'!C62=\"\",\"\",'Заполнение данных на месяц'!C62)","v":47},{"$f":"IF('Заполнение данных на месяц'!D62=\"\",\"\",'Заполнение данных на месяц'!D62)","v":"Журавлёв"}]
[null,null,{"$f":"IF('Заполнение данных на месяц'!C63=\"\",\"\",'Заполнение данных на месяц'!C63)","v":48},{"$f":"IF('Заполнение данных на месяц'!D63=\"\",\"\",'Заполнение данных на месяц'!D63)","v":"Зайцев"}]
[null,null,{"$f":"IF('Заполнение данных на месяц'!C64=\"\",\"\",'Заполнение данных на месяц'!C64)","v":49},{"$f":"IF('Заполнение данных на месяц'!D64=\"\",\"\",'Заполнение данных на месяц'!D64)","v":"Захаров"}]
[null,null,{"$f":"IF('Заполнение данных на месяц'!C65=\"\",\"\",'Заполнение данных на месяц'!C65)","v":50},{"$f":"IF('Заполнение данных на месяц'!D65=\"\",\"\",'Заполнение данных на месяц'!D65)","v":"Зимин"}]

{"sheet":"2","index":3,"n_rows":110,"n_cols":8,"rows_kept":110,"cut":false,"hidden":false,"merged":[[9,2,9,3],[13,6,13,11],[2,15,2,16],[3,7,3,8],[3,10,3,13],[4,3,4,4],[5,7,5,8],[5,10,5,13]]}
[]
[]
[]
[]
[]
[]
[]
[]
[]
[null,null,"Сотрудники"]
[null,null,51,"Константинов",null,null,{"$f":"IF(C10=\"\",\"\",C10)","v":"Сотрудники"},"Котов"]
[null,null,52,"Копылов"]
[null,null,53,"Корнилов"]
[null,null,54,"Королёв",null,null,"Здесь с 51-го по 150 сотрудника"]
[null,null,55,"Костин"]
[null,null,56,"Котов"]
[null,null,57,"Кошелев",null,null,"График"]
[null,null,58,"Красильников",null,null,{"$f":"VLOOKUP($H$11,График!$D$11:$AJ$160,ROW(A3),0)","v":60},"2016-09-01"]
[null,null,59,"Крылов",null,null,{"$f":"VLOOKUP($H$11,График!$D$11:$AJ$160,ROW(A4),0)","v":0},"2016-09-02"]
[null,null,60,"Крюков",null,null,{"$f":"VLOOKUP($H$11,График!$D$11:$AJ$160,ROW(A5),0)","v":"1з"},"2016-09-03"]
[null,null,61,"Кудрявцев",null,null,{"$f":"VLOOKUP($H$11,График!$D$11:$AJ$160,ROW(A6),0)","v":13},"2016-09-04"]
[null,null,62,"Кудряшов",null,null,{"$f":"VLOOKUP($H$11,График!$D$11:$AJ$160,ROW(A7),0)","v":14},"2016-09-05"]
[null,null,63,"Кузнецов",null,null,{"$f":"VLOOKUP($H$11,График!$D$11:$AJ$160,ROW(A8),0)","v":75},"2016-09-06"]
[null,null,64,"Кузьмин",null,null,{"$f":"VLOOKUP($H$11,График!$D$11:$AJ$160,ROW(A9),0)","v":0},"2016-09-07"]
[null,null,65,"Кулагин",null,null,{"$f":"VLOOKUP($H$11,График!$D$11:$AJ$160,ROW(A10),0)","v":0},"2016-09-08"]
[null,null,66,"Кулаков",null,null,{"$f":"VLOOKUP($H$11,График!$D$11:$AJ$160,ROW(A11),0)","v":18},"2016-09-09"]
[null,null,67,"Куликов",null,null,{"$f":"VLOOKUP($H$11,График!$D$11:$AJ$160,ROW(A12),0)","v":19},"2016-09-10"]
[null,null,68,"Лаврентьев",null,null,{"$f":"VLOOKUP($H$11,График!$D$11:$AJ$160,ROW(A13),0)","v":"з0"},"2016-09-11"]
[null,null,69,"Лазарев",null,null,{"$f":"VLOOKUP($H$11,График!$D$11:$AJ$160,ROW(A14),0)","v":"з1"},"2016-09-12"]
[null,null,70,"Лапин",null,null,{"$f":"VLOOKUP($H$11,График!$D$11:$AJ$160,ROW(A15),0)","v":"зз"},"2016-09-13"]
[null,null,71,"Ларионов",null,null,{"$f":"VLOOKUP($H$11,График!$D$11:$AJ$160,ROW(A16),0)","v":"з3"},"2016-09-14"]
[null,null,72,"Лебедев",null,null,{"$f":"VLOOKUP($H$11,График!$D$11:$AJ$160,ROW(A17),0)","v":"з4"},"2016-09-15"]
[null,null,73,"Лихачёв",null,null,{"$f":"VLOOKUP($H$11,График!$D$11:$AJ$160,ROW(A18),0)","v":"з5"},"2016-09-16"]
[null,null,74,"Лобанов",null,null,{"$f":"VLOOKUP($H$11,График!$D$11:$AJ$160,ROW(A19),0)","v":"з6"},"2016-09-17"]
[null,null,75,"Логинов",null,null,{"$f":"VLOOKUP($H$11,График!$D$11:$AJ$160,ROW(A20),0)","v":"з7"},"2016-09-18"]
[null,null,76,"Лукин",null,null,{"$f":"VLOOKUP($H$11,График!$D$11:$AJ$160,ROW(A21),0)","v":"з8"},"2016-09-19"]
[null,null,77,"Лыткин",null,null,{"$f":"VLOOKUP($H$11,График!$D$11:$AJ$160,ROW(A22),0)","v":74},"2016-09-20"]
[null,null,78,"Макаров",null,null,{"$f":"VLOOKUP($H$11,График!$D$11:$AJ$160,ROW(A23),0)","v":30},"2016-09-21"]
[null,null,79,"Максимов",null,null,{"$f":"VLOOKUP($H$11,График!$D$11:$AJ$160,ROW(A24),0)","v":31},"2016-09-22"]
[null,null,80,"Мамонтов",null,null,{"$f":"VLOOKUP($H$11,График!$D$11:$AJ$160,ROW(A25),0)","v":"3з"},"2016-09-23"]
[null,null,81,"Марков",null,null,{"$f":"VLOOKUP($H$11,График!$D$11:$AJ$160,ROW(A26),0)","v":33},"2016-09-24"]
[null,null,82,"Мартынов",null,null,{"$f":"VLOOKUP($H$11,График!$D$11:$AJ$160,ROW(A27),0)","v":34},"2016-09-25"]
[null,null,83,"Маслов",null,null,{"$f":"VLOOKUP($H$11,График!$D$11:$AJ$160,ROW(A28),0)","v":35},"2016-09-26"]
[null,null,84,"Матвеев",null,null,{"$f":"VLOOKUP($H$11,График!$D$11:$AJ$160,ROW(A29),0)","v":36},"2016-09-27"]
[null,null,85,"Медведев",null,null,{"$f":"VLOOKUP($H$11,График!$D$11:$AJ$160,ROW(A30),0)","v":37},"2016-09-28"]
[null,null,86,"Мельников",null,null,{"$f":"VLOOKUP($H$11,График!$D$11:$AJ$160,ROW(A31),0)","v":0},"2016-09-29"]
[null,null,87,"Меркушев",null,null,{"$f":"VLOOKUP($H$11,График!$D$11:$AJ$160,ROW(A32),0)","v":39},"2016-09-30"]
[null,null,88,"Миронов",null,null,{"$f":"VLOOKUP($H$11,График!$D$11:$AJ$160,ROW(A33),0)","v":0},"2016-10-01"]
[null,null,89,"Михайлов"]
[null,null,90,"Михеев"]
[null,null,91,"Мишин"]
[null,null,92,"Моисеев"]
[null,null,93,"Молчанов"]
[null,null,94,"Морозов"]
[null,null,95,"Муравьёв"]
[null,null,96,"Мухин"]
[null,null,97,"Мышкин"]
[null,null,98,"Мясников"]
[null,null,99,"Назаров"]
[null,null,100,"Наумов"]
[null,null,101,"Некрасов"]
[null,null,102,"Нестеров"]
[null,null,103,"Никитин"]
[null,null,104,"Никифоров"]
[null,null,105,"Николаев"]
[null,null,106,"Никонов"]
[null,null,107,"Новиков"]
[null,null,108,"Носков"]
[null,null,109,"Носов"]
[null,null,110,"Овчинников"]
[null,null,111,"Одинцов"]
[null,null,112,"Орехов"]
[null,null,113,"Орлов"]
[null,null,114,"Осипов"]
[null,null,115,"Павлов"]
[null,null,116,"Панов"]
[null,null,117,"Панфилов"]
[null,null,118,"Пахомов"]
[null,null,119,"Пестов"]
[null,null,120,"Петров"]
[null,null,121,"Петухов"]
[null,null,122,"Поляков"]
[null,null,123,"Пономарёв"]
[null,null,124,"Попов"]
[null,null,125,"Потапов"]
[null,null,126,"Прохоров"]
[null,null,127,"Рогов"]
[null,null,128,"Родионов"]
[null,null,129,"Рожков"]
[null,null,130,"Романов"]
[null,null,131,"Русаков"]
[null,null,132,"Рыбаков"]
[null,null,133,"Рябов"]
[null,null,134,"Савельев"]
[null,null,135,"Савин"]
[null,null,136,"Сазонов"]
[null,null,137,"Самойлов"]
[null,null,138,"Самсонов"]
[null,null,139,"Сафонов"]
[null,null,140,"Селезнёв"]
[null,null,141,"Селиверстов"]
[null,null,142,"Семёнов"]
[null,null,143,"Сергеев"]
[null,null,144,"Сидоров"]
[null,null,145,"Силин"]
[null,null,146,"Симонов"]
[null,null,147,"Ситников"]
[null,null,148,"Соболев"]
[null,null,149,"Соколов"]
[null,null,150,"Соловьёв"]